fUSD/lending_fUSD_20250222
["ID","MTS","AMOUNT","RATE_DAILY","PERIOD"]
[354059087,1740215447829,-500.0,0.00011369,2]
[354059089,1740215447839,-500.0,0.00011369,2]
[354059091,1740215447849,-305.8713493,0.00011369,2]
[354059093,1740215447858,-500.0,0.00011369,2]
[354059094,1740215447868,-542.04,0.00011369,2]
[354059096,1740215447877,-500.0,0.00011369,2]
[354059098,1740215447887,-500.0,0.00011369,2]
[354059100,1740215447896,-603.88211233,0.00011369,2]
[354059102,1740215447905,-500.0,0.00011369,2]
[354059103,1740215447914,-934.92,0.00011369,2]
[354059105,1740215447923,-500.0,0.00011369,2]
[354059106,1740215447933,-500.0,0.00011369,2]
[354059108,1740215447943,-697.27,0.00011369,2]
[354059109,1740215447952,-500.0,0.00011369,2]
[354059111,1740215447961,-500.0,0.00011369,2]
[354059112,1740215447970,-500.0,0.00011369,2]
[354059114,1740215447979,-500.0,0.00011369,2]
[354059116,1740215447988,-857.92,0.00011369,2]
[354059117,1740215447997,-1359.06,0.00011369,2]
[354059119,1740215448007,-500.0,0.00011369,2]
[354059120,1740215448016,-150.0,0.00011372,2]
[354059122,1740215448025,-150.0,0.00011373,2]
[354059123,1740215448034,-150.0,0.0001138,2]
[354059125,1740215448043,-150.0,0.00011381,2]
[354059127,1740215448052,-150.0,0.00011384,2]
[354059128,1740215448062,-150.0,0.00011384,2]
[354059130,1740215448071,-150.0,0.00011389,2]
[354059131,1740215448080,-150.0,0.00011391,2]
[354059133,1740215448089,-150.0,0.00011395,2]
[354059134,1740215448099,-300.22,0.00011397,2]
[354059136,1740215448109,-150.0,0.00011398,2]
[354059138,1740215448119,-150.0,0.00011403,2]
[354059139,1740215448128,-150.0,0.0001141,2]
[354059141,1740215448137,-150.0,0.00011412,2]
[354059142,1740215448147,-150.0,0.00011415,2]
[354059144,1740215448156,-238.45849848,0.00011417,2]
[354059146,1740215448166,-150.0,0.00011421,2]
[354059148,1740215448175,-150.73443529,0.00011422,2]
[354059160,1740215448326,-150.0,0.00011425,2]
[354059162,1740215448358,-150.0,0.00011426,2]
[354059164,1740215448369,-150.0,0.0001143,2]
[354059166,1740215448378,-150.0,0.00011431,2]
[354059167,1740215448388,-1591.46188824,0.00011434,2]
[354059169,1740215448398,-897.19445788,0.00011435,2]
[354059171,1740215448407,-150.0,0.00011439,2]
[354059172,1740215448417,-2000.0,0.00011442,2]
[354059174,1740215448426,-150.0,0.00011443,2]
[354059176,1740215448436,-153.640137,0.00011445,2]
[354059178,1740215448446,-150.0,0.00011448,2]
[354059179,1740215448456,-488.39907595,0.00011452,2]
[354059181,1740215448465,-320.25355226,0.00011452,2]
[354059183,1740215448477,-500.0,0.00011452,2]
[354059185,1740215448493,-500.0,0.00011452,2]
[354059187,1740215448507,-500.0,0.00011452,2]
[354059189,1740215448517,-500.0,0.00011452,2]
[354059191,1740215448526,-542.04,0.00011452,2]
[354059193,1740215448536,-500.0,0.00011452,2]
[354059195,1740215448545,-627.60074386,0.00011452,2]
[354059197,1740215448554,-500.0,0.00011452,2]
[354059199,1740215448564,-934.92,0.00011452,2]
[354059201,1740215448573,-500.0,0.00011452,2]
[354059203,1740215448583,-500.0,0.00011452,2]
[354059205,1740215448593,-697.27,0.00011452,2]
[354059207,1740215448603,-500.0,0.00011452,2]
[354059209,1740215448612,-500.0,0.00011452,2]
[354059210,1740215448622,-500.0,0.00011452,2]
[354059211,1740215448631,-500.0,0.00011452,2]
[354059212,1740215448640,-857.92,0.00011452,2]
[354059213,1740215448649,-1359.06,0.00011452,2]
[354059214,1740215448659,-500.0,0.00011452,2]
[354059215,1740215448668,-150.0,0.00011458,2]
[354059216,1740215448677,-150.0,0.00011467,2]
[354059217,1740215448686,-150.0,0.0001147,2]
[354059218,1740215448695,-1001.237688,0.00011471,2]
[354059219,1740215448704,-150.0,0.00011472,2]
[354059220,1740215448713,-150.0,0.00011472,2]
[354059221,1740215448721,-150.0,0.00011474,2]
[354059222,1740215448731,-150.0,0.00011479,2]
[354059223,1740215448740,-150.0,0.00011484,2]
[354059225,1740215448750,-150.0,0.00011485,2]
[354059226,1740215448759,-150.0,0.00011486,2]
[354059228,1740215448768,-150.0,0.00011514,2]
[354059230,1740215448777,-161.21148054,0.00011515,2]
[354059232,1740215448787,-150.0,0.00011515,2]
[354059234,1740215448796,-150.0,0.00011515,2]
[354059236,1740215448805,-150.0,0.00011515,2]
[354059238,1740215448814,-150.0,0.00011521,2]
[354059240,1740215448824,-3989.2892084,0.00011524,2]
[354059242,1740215448834,-1804.4064469,0.00011524,2]
[354059244,1740215448843,-184.0785176,0.00011526,2]
[354059246,1740215448852,-873.12202241,0.00011526,2]
[354059248,1740215448862,-161.21148054,0.00011528,2]
[354059250,1740215448871,-500.0,0.00011534,2]
[354059252,1740215448880,-500.0,0.00011534,2]
[354059254,1740215448889,-500.0,0.00011534,2]
[354059256,1740215448899,-500.0,0.00011534,2]
[354059258,1740215448908,-542.04,0.00011534,2]
[354059260,1740215448917,-348.98457498,0.00011534,2]
[354059263,1740215448937,-151.01542502,0.00011534,2]
[354059265,1740215448946,-500.0,0.00011534,2]
[354059267,1740215448956,-934.92,0.00011534,2]
[354059269,1740215448965,-500.0,0.00011534,2]
[354059271,1740215448974,-196.4483566,0.00011534,2]
[354059273,1740215448984,-697.27,0.00011534,2]
[354059275,1740215448994,-500.0,0.00011534,2]
[354059277,1740215449003,-500.0,0.00011534,2]
[354059279,1740215449012,-500.0,0.00011534,2]
[354059281,1740215449022,-500.0,0.00011534,2]
[354059284,1740215449033,-857.92,0.00011534,2]
[354059286,1740215449043,-1359.06,0.00011534,2]
[354059288,1740215449052,-500.0,0.00011534,2]
[354059290,1740215449062,-161.21148054,0.00011541,2]
[354059292,1740215449071,-150.0,0.00011549,2]
[354059294,1740215449081,-161.21148054,0.00011554,2]
[354059296,1740215449089,-161.21148054,0.00011567,2]
[354059298,1740215449098,-161.21148054,0.0001158,2]
[354059300,1740215449109,-150.0,0.00011582,2]
[354059302,1740215449120,-150.0,0.0001159,2]
[354059304,1740215449129,-161.21148054,0.00011593,2]
[354059306,1740215449139,-161.21148054,0.00011606,2]
[354059308,1740215449148,-193.408306,0.0001161,2]
[354059310,1740215449158,-211.28187742,0.00011616,2]
[354059312,1740215449170,-288.71812258,0.00011616,2]
[354059314,1740215449180,-500.0,0.00011616,2]
[354059316,1740215449190,-500.0,0.00011616,2]
[354059318,1740215449200,-500.0,0.00011616,2]
[354059320,1740215449210,-542.04,0.00011616,2]
[354059322,1740215449219,-500.0,0.00011616,2]
[354059324,1740215449231,-366.28545925,0.00011616,2]
[354059326,1740215449242,-934.92,0.00011616,2]
[354059328,1740215449253,-500.0,0.00011616,2]
[354059330,1740215449263,-204.03641817,0.00011616,2]
[354059332,1740215449276,-493.23358183,0.00011616,2]
[354059334,1740215449286,-69.06115124,0.00011616,2]
[354059337,1740215449301,-430.93884876,0.00011616,2]
[354059339,1740215449311,-500.0,0.00011616,2]
[354059341,1740215449322,-500.0,0.00011616,2]
[354059343,1740215449331,-627.57698595,0.00011616,2]
[354059345,1740215449340,-857.92,0.00011616,2]
[354059347,1740215449350,-1359.06,0.00011616,2]
[354059349,1740215449361,-272.45808037,0.00011616,2]
[354059351,1740215449370,-150.0,0.00011616,2]
[354059353,1740215449381,-161.21148054,0.00011618,2]
[354059355,1740215449391,-161.21148054,0.00011631,2]
[354059357,1740215449400,-220.34405726,0.00011635,2]
[354059359,1740215449410,-643.2,0.00011644,2]
[354059361,1740215449419,-161.21148054,0.00011644,2]
[354059363,1740215449428,-352.22631784,0.00011645,2]
[354059365,1740215449440,-29609.04510697,0.00011645,2]
[354059368,1740215449451,-31650.60959778,0.00011645,2]
[354059370,1740215449461,-500.0,0.00011645,2]
[354059372,1740215449470,-500.0,0.00011645,2]
[354059374,1740215449479,-500.0,0.00011645,2]
[354059376,1740215449488,-500.0,0.00011645,2]
[354059378,1740215449497,-500.0,0.00011645,2]
[354059380,1740215449507,-950.0,0.00011645,2]
[354059382,1740215449516,-500.0,0.00011645,2]
[354059384,1740215449525,-754.0,0.00011645,2]
[354059386,1740215449534,-150.0,0.0001165,2]
[354059388,1740215449543,-161.21148054,0.00011657,2]
[354059390,1740215449552,-1000.0,0.00011663,2]
[354059392,1740215449561,-150.0,0.00011666,2]
[354059394,1740215449571,-161.21148054,0.0001167,2]
[354059396,1740215449580,-161.21148054,0.00011683,2]
[354059398,1740215449588,-150.0,0.00011683,2]
[354059400,1740215449598,-161.21148054,0.00011696,2]
[354059402,1740215449608,-500.0,0.00011698,2]
[354059403,1740215449617,-500.0,0.00011698,2]
[354059405,1740215449626,-500.0,0.00011698,2]
[354059408,1740215449636,-500.0,0.00011698,2]
[354059409,1740215449645,-542.04,0.00011698,2]
[354059412,1740215449656,-500.0,0.00011698,2]
[354059414,1740215449665,-934.92,0.00011698,2]
[354059416,1740215449674,-500.0,0.00011698,2]
[354059418,1740215449684,-697.27,0.00011698,2]
[354059420,1740215449693,-500.0,0.00011698,2]
[354059422,1740215449702,-500.0,0.00011698,2]
[354059424,1740215449711,-500.0,0.00011698,2]
[354059426,1740215449721,-857.92,0.00011698,2]
[354059428,1740215449730,-1359.06,0.00011698,2]
[354059430,1740215449739,-161.21148054,0.00011709,2]
[354059432,1740215449748,-150.0,0.00011717,2]
[354059434,1740215449757,-161.21148054,0.00011722,2]
[354059436,1740215449766,-150.0,0.00011728,2]
[354059438,1740215449775,-161.21148054,0.00011735,2]
[354059440,1740215449784,-150.0,0.00011741,2]
[354059442,1740215449793,-161.21148054,0.00011748,2]
[354059444,1740215449802,-150.0,0.00011751,2]
[354059446,1740215449811,-161.21148054,0.00011761,2]
[354059448,1740215449820,-161.21148054,0.00011774,2]
[354059450,1740215449831,-500.0,0.0001178,2]
[354059452,1740215449840,-500.0,0.0001178,2]
[354059454,1740215449849,-500.0,0.0001178,2]
[354059456,1740215449859,-500.0,0.0001178,2]
[354059458,1740215449868,-542.04,0.0001178,2]
[354059460,1740215449878,-500.0,0.0001178,2]
[354059462,1740215449887,-934.92,0.0001178,2]
[354059464,1740215449896,-206.03967863,0.0001178,2]
[354059466,1740215449905,-697.27,0.0001178,2]
[354059468,1740215449914,-500.0,0.0001178,2]
[354059470,1740215449923,-500.0,0.0001178,2]
[354059472,1740215449933,-500.0,0.0001178,2]
[354059474,1740215449942,-857.92,0.0001178,2]
[354059476,1740215449952,-1359.06,0.0001178,2]
[354059478,1740215449961,-150.0,0.00011784,2]
[354059480,1740215449970,-161.21148054,0.00011786,2]
[354059482,1740215449979,-238.45849848,0.00011797,2]
[354059484,1740215449989,-161.21148054,0.00011799,2]
[354059486,1740215449998,-1000.0,0.00011803,2]
[354059488,1740215450008,-1001.237688,0.00011803,2]
[354059490,1740215450017,-161.21148054,0.00011812,2]
[354059492,1740215450026,-150.0,0.00011816,2]
[354059494,1740215450035,-161.21148054,0.00011825,2]
[354059496,1740215450044,-161.21148054,0.00011838,2]
[354059498,1740215450053,-161.21148054,0.00011851,2]
[354059500,1740215450061,-500.0,0.00011863,2]
[354059501,1740215450070,-500.0,0.00011863,2]
[354059503,1740215450079,-500.0,0.00011863,2]
[354059505,1740215450089,-500.0,0.00011863,2]
[354059507,1740215450098,-542.04,0.00011863,2]
[354059509,1740215450108,-500.0,0.00011863,2]
[354059512,1740215450118,-934.92,0.00011863,2]
[354059514,1740215450128,-697.27,0.00011863,2]
[354059516,1740215450137,-500.0,0.00011863,2]
[354059518,1740215450146,-500.0,0.00011863,2]
[354059520,1740215450156,-500.0,0.00011863,2]
[354059522,1740215450166,-857.92,0.00011863,2]
[354059524,1740215450175,-1359.06,0.00011863,2]
[354059526,1740215450184,-161.21148054,0.00011864,2]
[354059528,1740215450193,-161.21148054,0.00011877,2]
[354059530,1740215450202,-161.21148054,0.0001189,2]
[354059532,1740215450213,-150.0,0.00011891,2]
[354059535,1740215450227,-5500.0,0.000119,4]
[354059537,1740215450241,-1290.0,0.000119,2]
[354059539,1740215450254,-161.21148054,0.00011903,2]
[354059541,1740215450266,-161.21148054,0.00011916,2]
[354059543,1740215450276,-161.21148054,0.00011929,2]
[354059546,1740215450287,-153.640137,0.00011939,2]
[354059548,1740215450299,-500.0,0.00011941,2]
[354059550,1740215450311,-161.21148054,0.00011942,2]
[354059552,1740215450323,-150.0,0.00011942,2]
[354059555,1740215450334,-500.0,0.00011945,2]
[354059557,1740215450344,-546.70463574,0.00011945,2]
[354059559,1740215450356,-500.0,0.00011945,2]
[354059561,1740215450367,-500.0,0.00011945,2]
[354059563,1740215450378,-542.04,0.00011945,2]
[354059565,1740215450390,-481.77566341,0.00011945,2]
[354059568,1740215450403,-934.92,0.00011945,2]
[354059570,1740215450414,-697.27,0.00011945,2]
[354059572,1740215450426,-500.0,0.00011945,2]
[354059574,1740215450437,-500.0,0.00011945,2]
[354059577,1740215450447,-500.0,0.00011945,2]
[354059579,1740215450457,-857.92,0.00011945,2]
[354059581,1740215450468,-1359.06,0.00011945,2]
[354059583,1740215450479,-304.43,0.00011945,2]
[354059585,1740215450490,-700.0,0.00011948,2]
[354059587,1740215450501,-161.21148054,0.00011954,2]
[354059589,1740215450512,-150.0,0.00011967,2]
[354059592,1740215450524,-161.21148054,0.00011967,2]
[354059594,1740215450534,-500.0,0.00011968,2]
[354059596,1740215450546,-161.21148054,0.0001198,2]
[354059598,1740215450557,-161.21148054,0.00011993,2]
[354059600,1740215450568,-500.0,0.00011996,2]
[354059603,1740215450580,-500.0,0.00011999,2]
[354059605,1740215450592,-875.78098101,0.00012,3]
[354059607,1740215450603,-164264.0,0.00012,2]
[354059609,1740215450616,-600.0,0.00012,2]
[354059611,1740215450627,-161.21148054,0.00012006,2]
[354059614,1740215450639,-161.21148054,0.00012019,2]
[354059616,1740215450650,-500.0,0.00012023,2]
[354059618,1740215450661,-500.0,0.00012027,2]
[354059620,1740215450671,-500.0,0.00012027,2]
[354059622,1740215450682,-500.0,0.00012027,2]
[354059625,1740215450693,-542.04,0.00012027,2]
[354059627,1740215450705,-934.92,0.00012027,2]
[354059629,1740215450717,-697.27,0.00012027,2]
[354059631,1740215450728,-500.0,0.00012027,2]
[354059634,1740215450741,-500.0,0.00012027,2]
[354059636,1740215450753,-500.0,0.00012027,2]
[354059638,1740215450764,-857.92,0.00012027,2]
[354059640,1740215450776,-1359.06,0.00012027,2]
[354059643,1740215450786,-161.21148054,0.00012032,2]
[354059645,1740215450796,-150.0,0.00012042,2]
[354059647,1740215450806,-161.21148054,0.00012045,2]
[354059649,1740215450815,-868.72911913,0.00012051,2]
[354059651,1740215450826,-161.21148054,0.00012058,2]
[354059653,1740215450836,-161.21148054,0.00012071,2]
[354059655,1740215450846,-161.21148054,0.00012084,2]
[354059657,1740215450860,-161.21148054,0.00012097,2]
[354059658,1740215450871,-2000.0,0.000121,2]
[354059659,1740215450880,-500.0,0.00012109,2]
[354059660,1740215450890,-500.0,0.00012109,2]
[354059661,1740215450899,-500.0,0.00012109,2]
[354059662,1740215450909,-542.04,0.00012109,2]
[354059663,1740215450919,-934.92,0.00012109,2]
[354059664,1740215450930,-697.27,0.00012109,2]
[354059665,1740215450941,-500.0,0.00012109,2]
[354059667,1740215450954,-500.0,0.00012109,2]
[354059669,1740215450967,-241.92169113,0.00012109,2]
[354059671,1740215450979,-857.92,0.00012109,2]
[354059673,1740215450992,-1359.06,0.00012109,2]
[354059676,1740215451003,-161.21148054,0.0001211,2]
[354059678,1740215451015,-150.0,0.00012117,2]
[354059680,1740215451026,-161.21148054,0.00012122,2]
[354059682,1740215451036,-161.21148054,0.00012135,2]
[354059684,1740215451048,-1001.237688,0.00012136,2]
[354059686,1740215451059,-161.21148054,0.00012148,2]
[354059688,1740215451072,-150.0,0.00012155,2]
[354059690,1740215451085,-1060.0,0.00012157,2]
[354059692,1740215451097,-161.21148054,0.00012161,2]
[354059694,1740215451115,-457.39,0.00012172,2]
[354059696,1740215451127,-161.21148054,0.00012174,2]
[354059698,1740215451139,-238.45849848,0.00012176,2]
[354059700,1740215451151,-677.47,0.00012179,2]
[354059703,1740215451167,-161.21148054,0.00012187,2]
[354059705,1740215451178,-182.10454872,0.00012191,2]
[354059707,1740215451189,-500.0,0.00012191,2]
[354059709,1740215451206,-274.88674764,0.00012191,2]
[354059712,1740215451218,-542.04,0.00012191,2]
[354059714,1740215451230,-934.92,0.00012191,2]
[354059716,1740215451244,-697.27,0.00012191,2]
[354059718,1740215451256,-500.0,0.00012191,2]
[354059720,1740215451267,-500.0,0.00012191,2]
[354059722,1740215451279,-857.92,0.00012191,2]
[354059724,1740215451290,-1359.06,0.00012191,2]
[354059726,1740215451300,-150.0,0.00012192,2]
[354059728,1740215451311,-161.21148054,0.000122,2]
[354059731,1740215451328,-161.21148054,0.00012213,2]
[354059733,1740215451339,-161.21148054,0.00012226,2]
[354059735,1740215451352,-161.21148054,0.00012239,2]
[354059738,1740215451364,-1591.46188823,0.00012251,2]
[354059740,1740215451374,-161.21148054,0.00012252,2]
[354059742,1740215451384,-161.21148054,0.00012265,2]
[354059744,1740215451395,-150.0,0.00012268,2]
[354059746,1740215451406,-193.408306,0.00012268,2]
[354059748,1740215451417,-500.0,0.00012273,2]
[354059750,1740215451428,-542.04,0.00012273,2]
[354059752,1740215451439,-934.92,0.00012273,2]
[354059754,1740215451450,-697.27,0.00012273,2]
[354059757,1740215451461,-500.0,0.00012273,2]
[354059759,1740215451472,-500.0,0.00012273,2]
[354059761,1740215451483,-857.92,0.00012273,2]
[354059763,1740215451493,-1359.06,0.00012273,2]
[354059765,1740215451503,-161.21148054,0.00012278,2]
[354059767,1740215451514,-500.0,0.00012328,2]
[354059769,1740215451525,-1000.0,0.00012328,2]
[354059771,1740215451535,-200.467384,0.00012329,2]
[354059774,1740215451546,-151.0,0.00012329,2]
[354059776,1740215451556,-151.464295,0.00012329,2]
[354059778,1740215451567,-151.0,0.00012329,2]
[354059780,1740215451577,-151.0,0.00012329,2]
[354059782,1740215451587,-151.0,0.00012329,2]
[354059784,1740215451597,-151.0,0.00012329,2]
[354059786,1740215451609,-206.161021,0.00012329,2]
[354059788,1740215451619,-151.0,0.00012329,2]
[354059791,1740215451630,-151.0,0.00012329,2]
[354059793,1740215451640,-151.0,0.00012329,2]
[354059795,1740215451651,-151.0,0.00012329,2]
[354059797,1740215451661,-151.0,0.00012329,2]
[354059799,1740215451672,-151.0,0.00012329,2]
[354059801,1740215451682,-151.0,0.00012329,2]
[354059803,1740215451693,-151.0,0.00012329,2]
[354059806,1740215451704,-151.0,0.00012329,2]
[354059808,1740215451715,-151.0,0.00012329,2]
[354059810,1740215451725,-151.0,0.00012329,2]
[354059812,1740215451735,-151.0,0.00012329,2]
[354059814,1740215451746,-151.0,0.00012329,2]
[354059816,1740215451756,-151.0,0.00012329,2]
[354059818,1740215451767,-151.0,0.00012329,2]
[354059820,1740215451776,-196.001015,0.00012329,2]
[354059822,1740215451787,-151.0,0.00012329,2]
[354059825,1740215451797,-151.0,0.00012329,2]
[354059827,1740215451808,-151.0,0.00012329,2]
[354059829,1740215451818,-151.0,0.00012329,2]
[354059831,1740215451828,-151.0,0.00012329,2]
[354059833,1740215451839,-151.0,0.00012329,2]
[354059835,1740215451849,-151.516,0.00012329,2]
[354059837,1740215451860,-151.0,0.00012329,2]
[354059840,1740215451870,-151.158088,0.00012329,2]
[354059842,1740215451880,-151.0,0.00012329,2]
[354059844,1740215451890,-151.0,0.00012329,2]
[354059846,1740215451900,-151.0,0.00012329,2]
[354059848,1740215451911,-151.0,0.00012329,2]
[354059850,1740215451921,-151.0,0.00012329,2]
[354059852,1740215451931,-152.8124,0.00012329,2]
[354059854,1740215451942,-151.0,0.00012329,2]
[354059857,1740215451952,-151.0,0.00012329,2]
[354059859,1740215451962,-193.512769,0.00012329,2]
[354059861,1740215451973,-193.512769,0.00012329,2]
[354059863,1740215451983,-193.512769,0.00012329,2]
[354059865,1740215451994,-193.512769,0.00012329,2]
[354059867,1740215452004,-193.512769,0.00012329,2]
[354059869,1740215452015,-193.512769,0.00012329,2]
[354059872,1740215452026,-193.512769,0.00012329,2]
[354059874,1740215452036,-193.512769,0.00012329,2]
[354059876,1740215452047,-151.0,0.00012329,2]
[354059878,1740215452057,-151.0,0.00012329,2]
[354059880,1740215452066,-151.0,0.00012329,2]
[354059882,1740215452076,-151.0,0.00012329,2]
[354059884,1740215452085,-151.0,0.00012329,2]
[354059886,1740215452094,-151.0,0.00012329,2]
[354059888,1740215452103,-151.0,0.00012329,2]
[354059890,1740215452112,-151.0,0.00012329,2]
[354059892,1740215452121,-151.0,0.00012329,2]
[354059894,1740215452130,-151.0,0.00012329,2]
[354059896,1740215452139,-151.0,0.00012329,2]
[354059898,1740215452148,-151.0,0.00012329,2]
[354059900,1740215452158,-151.0,0.00012329,2]
[354059902,1740215452167,-151.0,0.00012329,2]
[354059904,1740215452177,-151.0,0.00012329,2]
[354059906,1740215452186,-151.0,0.00012329,2]
[354059908,1740215452196,-151.0,0.00012329,2]
[354059910,1740215452205,-151.383108,0.00012329,2]
[354059912,1740215452214,-151.0,0.00012329,2]
[354059914,1740215452223,-151.0,0.00012329,2]
[354059916,1740215452234,-151.0,0.00012329,2]
[354059918,1740215452246,-151.0,0.00012329,2]
[354059920,1740215452255,-222.252535,0.00012329,2]
[354059922,1740215452264,-151.0,0.00012329,2]
[354059923,1740215452273,-151.0,0.00012329,2]
[354059925,1740215452285,-151.0,0.00012329,2]
[354059927,1740215452294,-151.0,0.00012329,2]
[354059929,1740215452303,-151.0,0.00012329,2]
[354059931,1740215452313,-151.0,0.00012329,2]
[354059959,1740215452322,-151.0,0.00012329,2]
[354059962,1740215452580,-151.0,0.00012329,2]
[354059965,1740215452597,-151.0,0.00012329,2]
[354059967,1740215452607,-151.0,0.00012329,2]
[354059969,1740215452617,-151.0,0.00012329,2]
[354059971,1740215452626,-151.0,0.00012329,2]
[354059973,1740215452635,-151.0,0.00012329,2]
[354059975,1740215452644,-151.0,0.00012329,2]
[354059977,1740215452653,-151.0,0.00012329,2]
[354059979,1740215452662,-151.0,0.00012329,2]
[354059981,1740215452672,-151.0,0.00012329,2]
[354059983,1740215452680,-151.0,0.00012329,2]
[354059985,1740215452689,-282.296089,0.00012329,2]
[354059987,1740215452698,-151.0,0.00012329,2]
[354059989,1740215452707,-151.0,0.00012329,2]
[354059991,1740215452716,-151.0,0.00012329,2]
[354059993,1740215452725,-236.121474,0.00012329,2]
[354059995,1740215452734,-236.121474,0.00012329,2]
[354059997,1740215452744,-236.121474,0.00012329,2]
[354059999,1740215452753,-236.121474,0.00012329,2]
[354060001,1740215452762,-236.121474,0.00012329,2]
[354060003,1740215452771,-236.121474,0.00012329,2]
[354060005,1740215452781,-236.121474,0.00012329,2]
[354060007,1740215452790,-236.121474,0.00012329,2]
[354060009,1740215452799,-151.0,0.00012329,2]
[354060011,1740215452809,-151.0,0.00012329,2]
[354060013,1740215452818,-244.257097,0.00012329,2]
[354060015,1740215452827,-151.0,0.00012329,2]
[354060017,1740215452836,-151.0,0.00012329,2]
[354060019,1740215452845,-151.0,0.00012329,2]
[354060021,1740215452855,-151.0,0.00012329,2]
[354060023,1740215452864,-151.0,0.00012329,2]
[354060025,1740215452872,-231.031672,0.00012329,2]
[354060027,1740215452882,-151.0,0.00012329,2]
[354060029,1740215452891,-151.0,0.00012329,2]
[354060031,1740215452900,-151.0,0.00012329,2]
[354060033,1740215452909,-151.298553,0.00012329,2]
[354060035,1740215452918,-151.0,0.00012329,2]
[354060037,1740215452927,-151.0,0.00012329,2]
[354060039,1740215452936,-151.0,0.00012329,2]
[354060040,1740215452947,-151.0,0.00012329,2]
[354060041,1740215452956,-151.0,0.00012329,2]
[354060042,1740215452965,-151.0,0.00012329,2]
[354060043,1740215452974,-151.0,0.00012329,2]
[354060044,1740215452983,-151.0,0.00012329,2]
[354060045,1740215452992,-151.36665,0.00012329,2]
[354060046,1740215453001,-151.0,0.00012329,2]
[354060047,1740215453011,-151.0,0.00012329,2]
[354060048,1740215453020,-151.0,0.00012329,2]
[354060050,1740215453029,-151.0,0.00012329,2]
[354060052,1740215453038,-151.0,0.00012329,2]
[354060054,1740215453048,-151.0,0.00012329,2]
[354060056,1740215453058,-151.0,0.00012329,2]
[354060058,1740215453068,-151.0,0.00012329,2]
[354060060,1740215453077,-151.0,0.00012329,2]
[354060062,1740215453087,-151.0,0.00012329,2]
[354060064,1740215453097,-151.0,0.00012329,2]
[354060066,1740215453107,-297.351241,0.00012329,2]
[354060068,1740215453117,-151.0,0.00012329,2]
[354060070,1740215453126,-151.0,0.00012329,2]
[354060072,1740215453135,-151.0,0.00012329,2]
[354060074,1740215453144,-151.0,0.00012329,2]
[354060076,1740215453154,-151.0,0.00012329,2]
[354060078,1740215453164,-151.0,0.00012329,2]
[354060080,1740215453173,-151.0,0.00012329,2]
[354060082,1740215453183,-151.0,0.00012329,2]
[354060084,1740215453192,-151.0,0.00012329,2]
[354060086,1740215453202,-151.0,0.00012329,2]
[354060088,1740215453211,-151.0,0.00012329,2]
[354060090,1740215453221,-151.0,0.00012329,2]
[354060093,1740215453232,-151.0,0.00012329,2]
[354060095,1740215453245,-151.0,0.00012329,2]
[354060096,1740215453256,-151.0,0.00012329,2]
[354060098,1740215453266,-152.854921,0.00012329,2]
[354060101,1740215453275,-161.661491,0.00012329,2]
[354060102,1740215453285,-151.0,0.00012329,2]